[Event "4NCL 2022-2023"]
[Site "Daventry"]
[Date "2023.01.15"]
[Round "4.26"]
[White "Alsina Leal, Daniel"]
[Black "McClement, Andrew"]
[Result "1-0"]
[ECO "B81"]
[WhiteElo "2520"]
[BlackElo "2220"]
[Annotator "TA"]
[PlyCount "139"]
[EventDate "2022.10.20"]
[EventType "team-tourn"]
[EventCountry "ENG"]
[SourceTitle "playchess.com"]
[Source "ChessBase"]
[SourceQuality "1"]
[TimeControl "40/6000+30:2400+30"]

{[%evp 15,139,42,52,22,50,45,52,52,46,46,53,49,50,46,62,68,61,47,48,50,45,62,63,50,57,52,65,46,62,62,69,0,10,0,0,0,0,0,0,0,23,0,0,0,0,-24,-18,-14,-19,-16,0,0,0,0,0,0,0,0,0,0,0,0,0,0,0,0,0,0,0,-3,-2,-2,-3,-18,-18,-22,0,-17,-20,-110,-41,-33,-38,-92,-138,-185,-60,-101,0,0,0,0,0,0,-6,-827,-917,-1023,-1034,-845,-840,-644,0,0,137,140,140,140,147,147,1016,818,459,362,173,170,236,0,12846,12847,29989,29990,29990,29989,29989,12850]} 1. e4 {[%emt 0:05:10]} c5 {[%emt 0:00:02]} 2. Nf3 {[%emt 0:00:10]} d6 {[%emt 0:00:01]} 3. d4 {[%emt 0:00:06]} cxd4 {[%emt 0:00:03]} 4. Nxd4 {[%emt 0:00:17]} Nf6 {[%emt 0:00:01]} 5. Nc3 {[%emt 0:00:09]} e6 {[%emt 0:00:03]} 6. g4 {[%emt 0:00:21]} h6 {[%emt 0:00:04]} 7. Rg1 {[%emt 0:00:22]} Be7 {[%emt 0:01:28]} 8. Be3 {[%emt 0:00:37]} Nc6 {[%emt 0:00:28]} 9. Nb3 {[%emt 0:00:32] B81: Sicilian Scheveningen: Keres Attack.} d5 {[%emt 0:05:00]} 10. exd5 {[%emt 0:00:39] [#]} Nxd5 $146 {[%emt 0:00:31]} ({Predecessor:} 10... exd5 11. g5 hxg5 12. Rxg5 Be6 13. Rxg7 Rxh2 14. Qf3 d4 15. O-O-O Bxb3 16. axb3 Qa5 17. Bxd4 {1-0 Collier,D (2225)-Humphreys,J (2073) Bristol League op 2004 (5)}) 11. Nxd5 {[%emt 0:00:14] White is slightly better.} Qxd5 {[%emt 0:00:57]} 12. Qxd5 {[%emt 0:00:38]} exd5 {[%emt 0:00:02]} 13. O-O-O {[%emt 0:00:56]} Be6 {[%emt 0:00:24]} 14. f4 {[%emt 0:13:26]} f6 {[%emt 0:28:31]} 15. Bb5 {[%emt 0:26:15]} O-O {[%emt 0:03:01]} 16. Nc5 {[%emt 0:18:42][%cal Bb3c5,Bc5b7,Bb7a5][%mdl 32] White is more active.} Bf7 {[%emt 0:12:33]} 17. Nxb7 {[%emt 0:13:22]} Rfc8 {[%emt 0:07:00]} 18. a3 {[%emt 0:07:09] Repels Nb4} Rab8 {[%emt 0:15:51]} 19. Bxc6 {[%emt 0:00:17][%mdl 64] Remove Defender} Rxc6 {[%emt 0:00:07]} 20. Na5 {[%emt 0:00:14]} Rc7 {[%emt 0:01:32]} 21. Rd3 {[%emt 0:02:04]} Bd6 {[%emt 0:07:16]} 22. b4 {[%emt 0:03:43]} Re8 {[%emt 0:00:48][%cal Oe8e3]} 23. Bd2 {[%emt 0:06:58]} (23. Rf1 $1 $14) 23... Re2 {[%emt 0:01:56]} 24. h3 {[%emt 0:01:45][%cal Oc2c4]} Rxd2 {[%emt 0:12:30][%mdl 64] Remove Defender} 25. Kxd2 {[%emt 0:00:50]} Bxf4+ {[%emt 0:00:01]} 26. Kd1 {[%emt 0:00:47]} Bg6 {[%emt 0:00:06]} 27. Rxd5 {[%emt 0:01:12]} Rxc2 {[%emt 0:00:22]} 28. Rf1 {[%emt 0:02:25]} Bg5 {[%emt 0:00:54] A strong pair of Bishops.} 29. Nb3 {[%emt 0:03:31]} Ra2 {[%emt 0:02:19] ...Bc2+ would be deadly.} 30. Nd4 {[%emt 0:00:53] Prevents Bc2+} Bd3 {[%emt 0:05:18][%cal Ra2a1] Dodges Nf5} 31. Rxg5 $1 {[%emt 0:01:03]} Bxf1 $11 {[%emt 0:02:42][%mdl 4096] Endgame KRB-KRN} 32. Ra5 {[%emt 0:00:15]} Bxh3 {[%emt 0:00:05]} 33. Rxa7 {[%emt 0:00:19] And now b5 would win.} Bxg4+ {[%emt 0:00:02]} 34. Kc1 $1 {[%emt 0:00:51]} Ra1+ {[%emt 0:01:23]} 35. Kc2 {[%emt 0:00:38]} Bh5 {[%emt 0:03:23]} 36. Ne6 {[%emt 0:01:09]} Bf7 {[%emt 0:00:54]} 37. Ra8+ {[%emt 0:00:08]} Kh7 {[%emt 0:00:04]} 38. Nf8+ {[%emt 0:00:07]} Kg8 {[%emt 0:00:10]} 39. Nd7+ {[%emt 0:00:29]} Kh7 {[%emt 0:00:05]} 40. Nf8+ {[%emt 0:01:13]} Kg8 {[%emt 0:00:01]} 41. Nd7+ {[%emt 0:00:00]} Kh7 {[%emt 0:00:00]} 42. b5 {[%emt 0:12:29]} h5 {[%emt 0:00:00]} 43. b6 {[%emt 0:01:07]} Bd5 {[%emt 0:00:00]} 44. Ra7 {[%emt 0:03:54]} Kh6 {[%emt 0:00:00] Black wants to play ...Be4+.} 45. b7 {[%emt 0:01:35]} Be4+ {[%emt 0:00:00]} (45... Bxb7 $5 46. Rxb7 Rxa3 $17) 46. Kc3 {[%emt 0:00:47]} Bxb7 {[%emt 0:00:00]} 47. Kb2 {[%emt 0:00:44]} (47. Rxb7 $11 {keeps the balance.} Rxa3+ 48. Kd2) 47... Re1 {[%emt 0:00:00]} (47... Rd1 $1 $17 {[%cal Rd1d7]} 48. Rxb7 h4) 48. Rxb7 $15 {[%emt 0:02:45] KRN-KR} h4 {[%emt 0:00:25]} 49. Rb8 {[%emt 0:05:55]} (49. a4 $1 $15) 49... Kg5 $17 {[%emt 0:01:42][%mdl 1024] Black has strong compensation.} (49... Re2+ $6 50. Kc3 $11) 50. Rh8 {[%emt 0:08:59]} (50. a4 $17) 50... f5 {[%emt 0:05:44]} (50... Re7 $19 51. Nc5 Kg4) 51. a4 $15 {[%emt 0:01:38]} f4 {[%emt 0:02:45]} ({Better is} 51... Re7 $1 $17 {[%cal Re7d7]} 52. Nb6 f4) 52. a5 $11 {[%emt 0:00:24] Black must now prevent a6.} Re7 {[%emt 0:00:16]} 53. Nc5 {[%emt 0:01:16]} f3 {[%emt 0:06:43]} 54. a6 {[%emt 0:00:42]} Kg4 {[%emt 0:01:19] Hoping for ...h3.} 55. Kc3 $2 {[%emt 0:02:35][%mdl 8192]} (55. Nd3 $11) 55... h3 $19 {[%emt 0:02:21]} 56. Nd3 {[%emt 0:02:17] Dodges f2} Kg3 {[%emt 0:01:13]} 57. Kc4 {[%emt 0:01:24]} h2 {[%emt 0:08:14] Threatens to win with ...g5.} 58. Rh5 {[%emt 0:00:31]} Re2 $2 {[%emt 0:04:57]} ({Black should play} 58... Rd7 $19 59. Rh7 g5 60. Rxd7 h1=Q) 59. Rg5+ {[%emt 0:00:28]} Kh3 {[%emt 0:05:20] [#]} (59... Kh4 $1 $11 60. Rxg7 f2 61. Rh7+ Kg3 62. Rg7+ (62. Nxf2 Rxf2 63. Rg7+ Kh4 $11) 62... Kh4 63. Rh7+ Kg3 64. Rg7+ (64. Nxf2 Rxf2 65. Rg7+ Kh4 $11) 64... Kh4) 60. a7 $1 $16 {[%emt 0:00:27]} (60. Rxg7 $6 f2 61. Rh7+ Kg3 62. Rg7+ (62. Nxf2 Rxf2 63. a7 Rc2+ 64. Kd5 Ra2 $11) 62... Kh4 63. Rh7+ Kg3 64. Rg7+ (64. Nxf2 Rxf2 65. Rg7+ Kf4 $11) 64... Kh4 65. Rh7+ Kg3 $11) 60... Ra2 {[%emt 0:06:52] [#]} 61. Nf2+ $1 {[%emt 0:00:10][%mdl 576] Promotion} Kh4 {[%emt 0:00:43]} (61... Rxf2 {is a self mate.} 62. a8=Q (62. a8=B $2 {too greedy.} h1=Q $19) 62... Kh4 63. Rxg7 Rc2+ 64. Kd3) 62. Rxg7 {[%emt 0:00:22] Strongly threatening Kb3.} Kh5 $2 {[%emt 0:00:18][%mdl 8192]} (62... Rc2+ $2 63. Kb4 Rc8 64. Kb5 $18) (62... Ra5 $16 63. Kd3 Kh5) 63. Kb5 {[%emt 0:00:54] aiming for Kb6.} Kh6 {[%emt 0:00:04]} 64. Rd7 {[%emt 0:00:37]} Kg5 {[%emt 0:00:26] Prevents Ng4.} 65. Kb6 {[%emt 0:00:32] Kb7 is the strong threat.} Kf4 {[%emt 0:02:29] [#]} (65... Rxf2 66. a8=Q Rb2+ 67. Kc7 Rc2+ 68. Kd8 h1=Q 69. Qd5+ Kh4 70. Rh7+ Kg3 71. Qg5+ Kf2 72. Rxh1) (65... Kh4 $142 66. Nd3 f2 67. Nxf2 Rb2+ 68. Kc5 Ra2) 66. Rg7 $2 {[%emt 0:00:31]} ({Worse is} 66. Rf7+ Kg3 67. Rh7 Kg2 $11) ({White has to play} 66. Nh1 $1 $18 Ra1 67. Rd8) 66... Rxf2 $2 {[%emt 0:03:01][%mdl 8192]} (66... Rb2+ $11 67. Kc6 Ra2) 67. a8=Q $18 {[%emt 0:00:05] White threatens Qa4+ and mate.} h1=Q {[%emt 0:00:32]} 68. Qa4+ {[%emt 0:00:31] White mates.} Ke3 {[%emt 0:00:31]} 69. Re7+ {[%emt 0:00:22]} Kd2 {[%emt 0:00:36]} 70. Qd4+ {[%emt 0:00:10] Excellently played by Alsina Leal!   Weighted Error Value: White=0.21 (precise) /Black=0.28 (precise)} (70. Qa2+ $142 Kc1 71. Qa1+ Kc2 72. Rc7+ Kd3 73. Qc3+ Ke4 74. Re7+ Kf5 75. Qe5+ Kg4 76. Rg7+ Kh4 77. Qg5+ Kh3 78. Rh7#) 1-0

[Event "4NCL 2022-2023"]
[Site "Daventry"]
[Date "2023.01.15"]
[Round "4.27"]
[White "Gallagher, Daniel GH"]
[Black "Rowson, Jonathan"]
[Result "1/2-1/2"]
[ECO "B10"]
[WhiteElo "2204"]
[BlackElo "2550"]
[Annotator "TA"]
[PlyCount "63"]
[EventDate "2022.10.20"]
[EventType "team-tourn"]
[EventCountry "ENG"]
[SourceTitle "playchess.com"]
[Source "ChessBase"]
[SourceQuality "1"]
[TimeControl "40/6000+30:2400+30"]

{[%evp 9,63,18,21,22,32,34,40,34,38,30,60,58,46,51,65,75,62,62,81,75,68,59,72,54,54,54,80,41,50,39,53,33,62,58,121,114,131,35,115,28,39,39,45,27,17,22,27,27,27,24,14,0,0,0,0,0]} 1. e4 {[%emt 0:00:06]} c6 {[%emt 0:06:46]} 2. Nf3 {[%emt 0:00:35]} d5 {[%emt 0:00:07]} 3. d3 {[%emt 0:00:08][%cal Bd2d3,Bd3d4][%mdl 32]} g6 {[%emt 0:01:17]} 4. e5 {[%emt 0:00:13]} c5 {[%emt 0:01:45]} 5. c3 {[%emt 0:01:00]} Nc6 {[%emt 0:00:23]} 6. d4 {[%emt 0:00:49] B10: Caro-Kann: 2 d3 and 2 c4.} Bg7 {[%emt 0:10:59]} 7. Bb5 {[%emt 0:06:50]} Qb6 {[%emt 0:07:58]} 8. Bxc6+ {[%emt 0:01:37] White is slightly better.} Qxc6 {[%emt 0:09:03]} 9. O-O {[%emt 0:00:58]} Nh6 {[%emt 0:03:43] [#]} 10. dxc5 $146 {[%emt 0:20:43]} ({Predecessor:} 10. Bf4 cxd4 11. cxd4 Bg4 12. Qd2 Nf5 13. Ne1 Qc4 14. Nc2 Be2 15. Re1 Bh5 16. Nc3 Rd8 17. Rac1 {1-0 Vorobiov,E (2580)-Suarez Uriel,A (2389) Lisbon Portugal op 2017 (4)}) 10... Qxc5 {[%emt 0:00:04]} 11. Nbd2 {[%emt 0:06:20][%cal Bb1d2,Bd2b3,Bb3d4][%mdl 32]} O-O {[%emt 0:01:41]} 12. Nb3 {[%emt 0:01:20]} Qc4 {[%emt 0:00:24]} 13. h3 {[%emt 0:11:25]} Nf5 {[%emt 0:06:48]} 14. g4 {[%emt 0:06:03]} Nh6 {[%emt 0:00:42][%cal Oh6g4]} 15. Nbd4 {[%emt 0:00:19]} f5 {[%emt 0:09:27]} 16. g5 {[%emt 0:02:22]} Nf7 {[%emt 0:00:06]} 17. Bf4 $36 {[%emt 0:00:14][%mdl 2048] Black is under pressure.} e6 {[%emt 0:01:20]} 18. Qd2 {[%emt 0:11:38]} Bd7 {[%emt 0:01:17]} 19. h4 {[%emt 0:02:39]} Rfc8 {[%emt 0:08:02]} 20. Kg2 {[%emt 0:02:32]} b5 {[%emt 0:06:58]} 21. h5 {[%emt 0:02:12]} a5 {[%emt 0:00:48]} (21... Nh8 $14) 22. hxg6 $1 $16 {[%emt 0:03:46]} hxg6 {[%emt 0:00:05] [#]} 23. a3 {[%emt 0:00:11]} (23. Nh4 $1 $16 {[%cal Rh4g6]} Nh8 24. a3) 23... Bf8 {[%emt 0:04:17] [#]} (23... Nd8 $1 $14) 24. Rac1 {[%emt 0:00:35]} ({Better is} 24. Nh4 $1 $16 {[%cal Rh4g6]} Kg7 25. Rh1) 24... Kg7 $11 {[%emt 0:04:52]} 25. Rh1 {[%emt 0:12:29]} Be7 {[%emt 0:00:08]} 26. Rh6 {[%emt 0:00:52][%cal Of3h4] Hoping for Nh4! Really sharp!} Rh8 {[%emt 0:05:12] [#]} (26... Nxh6 $2 27. gxh6+ Kh8 28. Bg5 $18) 27. Rch1 $1 {[%emt 0:01:47]} Rag8 {[%emt 0:03:11]} (27... Nxh6 $2 28. gxh6+ Kg8 29. Bg5 $18) (27... Qc7 {looks sharper.} 28. R6h4 Rae8 29. Ne1 Rxh4 30. Rxh4 Qd8) (27... Qc7 28. Be3) 28. Rxh8 {[%emt 0:04:02]} Rxh8 {[%emt 0:00:13]} 29. Rxh8 {[%emt 0:00:05]} Kxh8 {[%emt 0:01:20]} 30. b3 {[%emt 0:00:54] The position is equal.} Qc8 {[%emt 0:00:53]} 31. b4 {[%emt 0:00:06]} a4 {[%emt 0:02:28]} 32. Ne1 {[%emt 0:02:06] Weighted Error Value: White=0.15 (very precise) /Black=0.14 (very precise)} 1/2-1/2

[Event "4NCL 2022-2023"]
[Site "Daventry"]
[Date "2023.01.15"]
[Round "4.28"]
[White "Adair, James R"]
[Black "Hill, Alistair"]
[Result "1-0"]
[ECO "A65"]
[WhiteElo "2451"]
[BlackElo "2172"]
[Annotator "TA"]
[PlyCount "69"]
[EventDate "2022.10.20"]
[EventType "team-tourn"]
[EventCountry "ENG"]
[SourceTitle "playchess.com"]
[Source "ChessBase"]
[SourceQuality "1"]
[TimeControl "40/6000+30:2400+30"]

{[%evp 20,69,43,30,47,32,8,29,59,50,58,60,71,57,77,50,105,70,63,63,110,110,110,115,115,100,105,106,124,104,122,119,115,119,117,117,118,112,147,147,147,147,200,165,630,618,802,790,2522,2522,2239,2228]} 1. d4 {[%emt 0:18:05][%cal Bd2d4,Bd4d5][%mdl 32]} Nf6 {[%emt 0:00:39]} 2. c4 {[%emt 0:00:06]} g6 {[%emt 0:00:52]} 3. f3 {[%emt 0:00:07]} c5 {[%emt 0:01:06]} 4. d5 {[%emt 0:01:52]} d6 {[%emt 0:01:03]} 5. e4 {[%emt 0:00:05]} Bg7 {[%emt 0:00:10]} 6. Nc3 {[%emt 0:00:07]} O-O {[%emt 0:00:22]} 7. Nge2 {[%emt 0:00:30]} e6 {[%emt 0:01:58]} 8. Ng3 {[%emt 0:00:11]} exd5 {[%emt 0:05:25]} 9. cxd5 {[%emt 0:00:06]} a6 {[%emt 0:00:03]} 10. a4 {[%emt 0:00:12]} Nbd7 {[%emt 0:00:12]} 11. Be2 {[%emt 0:00:49]} Ne8 {[%emt 0:01:51] A65: Modern Benoni: 6 e4.} 12. Bf4 {[%emt 0:00:51]} Bd4 {[%emt 0:02:31]} 13. Qd2 {[%emt 0:03:13] [#]} Qa5 $146 {[%emt 0:18:44][%cal Ob7b5] White has an edge.} ({Predecessor:} 13... f5 14. Bg5 Qc7 15. h4 Ndf6 16. exf5 Bxf5 17. Nxf5 gxf5 18. Bd3 Ng7 19. Ne2 Rae8 {½-½ Fleetwood,D (2581)-Brodda,W (2584) GER GM08-A email 2019}) 14. Be3 {[%emt 0:14:44]} Bxe3 {[%emt 0:03:23]} 15. Qxe3 {[%emt 0:00:41]} b5 {[%emt 0:02:47]} 16. O-O {[%emt 0:01:08][%cal Ra4b5]} (16. axb5 $2 {perishes.} Qxa1+ 17. Kf2 Qxb2 $19) 16... bxa4 {[%emt 0:03:15]} 17. Rxa4 {[%emt 0:00:15]} Qb6 {[%emt 0:00:04]} (17... Qd8 $14) 18. b4 {[%emt 0:14:02]} Rb8 {[%emt 0:11:01]} 19. Rb1 {[%emt 0:03:52] White is much more active.} Nc7 {[%emt 0:03:28]} (19... Qd8 $14 {should be considered.}) 20. Nf1 $16 {[%emt 0:04:15]} cxb4 {[%emt 0:14:51]} 21. Qxb6 {[%emt 0:00:24]} Rxb6 {[%emt 0:00:05]} 22. Raxb4 {[%emt 0:00:59]} Rxb4 {[%emt 0:09:29]} 23. Rxb4 {[%emt 0:00:02]} Nc5 {[%emt 0:00:05]} 24. Ne3 {[%emt 0:07:33]} Rd8 {[%emt 0:03:17]} 25. Nc4 {[%emt 0:01:44][%cal Oc4d6] Strongly threatening Nxd6!} Nb5 {[%emt 0:06:35]} 26. Nxb5 {[%emt 0:03:10]} axb5 {[%emt 0:00:50]} 27. Rxb5 {[%emt 0:08:36][%cal Oc4d6] [#] Nxd6! is the strong threat.} Ba6 {[%emt 0:02:17]} 28. Rb6 {[%emt 0:01:06]} Kg7 {[%emt 0:10:15]} 29. Kf2 {[%emt 0:03:50]} ({Inferior is} 29. Rxd6 Rxd6 30. Nxd6 Bxe2 $15) 29... Bxc4 {[%emt 0:00:05]} 30. Bxc4 {[%emt 0:00:03] KRB-KRN} g5 {[%emt 0:00:20]} (30... Kf8 $16 {is a better defense.} 31. Ke3 Ke7) 31. Ke3 {[%emt 0:01:52]} Kf6 $2 {[%emt 0:00:11] [#]} (31... f6 32. h4 gxh4) 32. Kd4 $18 {[%emt 0:01:04] White is clearly winning.} Na4 {[%emt 0:01:58]} 33. e5+ {[%emt 0:03:11][%cal Be4e5,Be5e6][%mdl 32]} Ke7 {[%emt 0:00:05]} 34. Rb7+ {[%emt 0:00:17]} Kf8 {[%emt 0:00:04]} 35. e6 {[%emt 0:01:57] Weighted Error Value: White=0.09 (flawless) /Black=0.52} 1-0

[Event "4NCL 2022-2023"]
[Site "Daventry"]
[Date "2023.01.15"]
[Round "4.29"]
[White "Robertson, J Stuart"]
[Black "Wells, Peter K"]
[Result "1/2-1/2"]
[ECO "B14"]
[WhiteElo "2154"]
[BlackElo "2370"]
[Annotator "TA"]
[PlyCount "110"]
[EventDate "2022.10.20"]
[EventType "team-tourn"]
[EventCountry "ENG"]
[SourceTitle "playchess.com"]
[Source "ChessBase"]
[SourceQuality "1"]
[TimeControl "40/6000+30:2400+30"]

{[%evp 21,110,1,14,5,21,11,27,7,22,18,18,0,14,15,13,0,0,-18,-25,-15,-17,-52,-56,-113,-117,-87,-20,-20,-21,-21,-19,-18,-16,-35,-33,-52,-54,-53,-58,-49,-41,-54,-54,-59,-54,-88,-85,-87,-77,-77,-77,-77,-77,-77,-77,-77,-77,-77,-77,-85,-50,-50,-50,-50,-50,-50,-42,-42,-42,-42,-42,-42,-11,-31,-31,-31,-8,-8,-8,-8,-8,-11,-11,-11,-11,-11,-11,-464,-464,-470,-470]} 1. d4 {[%emt 0:06:58]} Nf6 {[%emt 0:00:22]} 2. c4 {[%emt 0:00:03]} e6 {[%emt 0:00:07]} 3. Nc3 {[%emt 0:00:04]} Bb4 {[%emt 0:00:08]} 4. e3 {[%emt 0:00:04]} O-O {[%emt 0:00:42]} 5. Bd2 {[%emt 0:00:05]} b6 {[%emt 0:02:02]} 6. Nf3 {[%emt 0:00:07]} Bb7 {[%emt 0:00:38]} 7. Bd3 {[%emt 0:00:15]} c5 {[%emt 0:03:34]} 8. O-O {[%emt 0:03:20]} cxd4 {[%emt 0:05:21]} 9. exd4 {[%emt 0:01:12]} d5 {[%emt 0:00:21]} 10. cxd5 {[%emt 0:08:39]} Nxd5 {[%emt 0:00:47]} 11. Qe2 {[%emt 0:11:27]} Nf6 {[%emt 0:20:38]} 12. Rfd1 {[%emt 0:08:59] B14: Caro-Kann: Panov-Botvinnik Attack with 5...e6 and 5...g6.} Nbd7 {[%emt 0:10:45] [#]} 13. Rac1 $146 {[%emt 0:06:03]} ({Predecessor:} 13. Bg5 Bxc3 14. bxc3 Qc7 15. Rac1 h6 16. Bd2 Rad8 17. c4 Rfe8 18. Bc3 Qf4 19. Qe3 Qxe3 20. fxe3 {1-0 Sanguineti,R-Bilek,I Olympiad-13 Preliminaries C 1958 (2)}) 13... Rc8 {[%emt 0:11:43]} 14. Ne5 {[%emt 0:03:50] White has an edge.} Bxc3 {[%emt 0:05:12]} (14... Nxe5 {simplifies} 15. dxe5 Nd5 16. a3 Bxc3 17. bxc3 Ne7) 15. bxc3 {[%emt 0:03:12]} Nxe5 {[%emt 0:01:44]} 16. dxe5 {[%emt 0:03:42]} Qd5 {[%emt 0:03:17][%csl Gb7][%cal Rd5g2] [#]} 17. f3 {[%emt 0:01:42]} Qc5+ {[%emt 0:04:57]} 18. Kh1 {[%emt 0:01:19]} Nd7 {[%emt 0:14:26]} 19. Bf4 {[%emt 0:01:53][%cal Od3h7]} Rc7 {[%emt 0:04:35]} 20. Qe1 {[%emt 0:02:01]} Rfc8 {[%emt 0:03:16]} 21. Qh4 {[%emt 0:02:16]} Nf8 {[%emt 0:00:37]} 22. Bg3 {[%emt 0:07:32]} ({Better is} 22. Qg3 $15) 22... Qa3 $17 {[%emt 0:04:43][%csl LRa2,LRc3]} 23. Be1 {[%emt 0:03:24]} Bc6 {[%emt 0:06:23]} (23... Qxa2 $6 24. Ra1 Qb3 25. Rdb1 $11) (23... Rd7 $17 {[%cal Od7d3] aiming for ...Rxd3!} 24. Bxh7+ Nxh7 25. Rxd7 Qxc1 26. Rxb7 g5) 24. Qb4 $11 {[%emt 0:07:32]} Qxb4 {[%emt 0:01:23]} 25. cxb4 {[%emt 0:00:04]} Ba4 {[%emt 0:00:08]} 26. Rxc7 {[%emt 0:00:08]} Rxc7 {[%emt 0:00:03]} 27. Rb1 {[%emt 0:01:50]} Ng6 {[%emt 0:00:37]} 28. Bg3 {[%emt 0:03:00]} Rc3 {[%emt 0:00:32]} 29. Be4 {[%emt 0:03:06]} Bc6 {[%emt 0:02:01]} 30. Bxg6 {[%emt 0:05:43]} hxg6 $15 {[%emt 0:00:06][%cal Bh7g6,Bg6g5][%mdl 4128] Endgame KRB-KRB} 31. Kg1 {[%emt 0:01:05]} g5 {[%emt 0:01:39]} 32. h3 {[%emt 0:00:29]} Bd5 {[%emt 0:01:26]} 33. Rb2 {[%emt 0:00:28]} Ra3 {[%emt 0:00:32]} 34. Be1 {[%emt 0:05:21]} Bxa2 {[%emt 0:00:48]} 35. h4 {[%emt 0:02:10]} gxh4 {[%emt 0:01:06]} 36. Bxh4 {[%emt 0:00:05]} Bd5 {[%emt 0:00:13]} 37. Be7 {[%emt 0:00:10]} a5 {[%emt 0:01:32]} 38. bxa5 {[%emt 0:00:28]} Ra1+ {[%emt 0:00:03]} ({Don't play} 38... Rxa5 $6 39. Rxb6 Ra7 40. Rb8+ Kh7 41. Bc5 $11) 39. Kf2 {[%emt 0:00:39]} bxa5 {[%emt 0:00:04]} 40. Re2 {[%emt 0:05:11]} a4 {[%emt 0:00:50] [#] Threatens to win with ...a3.} 41. Re1 {[%emt 0:42:32]} Rxe1 {[%emt 0:00:00]} 42. Kxe1 {[%emt 0:00:00] KB-KB} Kh7 {[%emt 0:00:00]} 43. Ke2 {[%emt 0:00:00]} Kg6 {[%emt 0:00:00]} 44. g4 {[%emt 0:00:00]} f5 {[%emt 0:03:06] Strongly threatening ...Kf7.} 45. exf6 {[%emt 0:00:00]} gxf6 {[%emt 0:00:40]} 46. f4 {[%emt 0:00:00]} e5 {[%emt 0:12:21]} 47. Ke3 {[%emt 0:00:00]} Kf7 {[%emt 0:04:34]} 48. Ba3 {[%emt 0:00:00]} Bb3 {[%emt 0:01:04]} 49. fxe5 {[%emt 0:00:00]} fxe5 {[%emt 0:00:05]} 50. Ke4 {[%emt 0:00:00]} Ke6 {[%emt 0:00:16]} 51. Bb2 {[%emt 0:00:00]} Bc2+ {[%emt 0:00:18]} 52. Ke3 {[%emt 0:00:00]} Kd5 {[%emt 0:01:28]} 53. Kd2 {[%emt 0:00:00]} Bg6 {[%emt 0:00:56]} 54. Bxe5 $2 {[%emt 0:00:00][%mdl 8192]} Kxe5 $19 {[%emt 0:00:06]} 55. Kc3 {[%emt 0:00:00]} Kf4 {[%emt 0:01:54][%mdl 32768] Weighted Error Value: White=0.24 (precise) /Black=0.08 (flawless) . An unexpected result.} ({Not} 55... a3 56. Kb3 $11) 1/2-1/2